Cogmind - Beta 13 @@@ ROGUE MODE // 2024.05.06 @ 20:19:52 Player: Plexion Result: Destroyed by 1C-UTU with 1C-UTU's Sword "Choppy" Performance ------------- Evolutions (4) 2000 Regions Visited (14) 2800 Robots Destroyed (188) 940 Value Destroyed (5460) 5460 Prototype IDs (49) 980 Alien Tech Used (0) 0 Bonus (1129) 1129 TOTAL SCORE: 13309 Bonus ------- High Alert Combat Kills 206 Follower Combat Kills 182 Aligned with FarCom 300 Met Data Miner 300 Met Imprinter 300 Friendly Fire -159 Cogmind --------- Core Integrity 0/850 Matter 294/300 Energy 100/100 System Corruption 6% Temperature Cool (0) Movement Core (1350) Ox26 Location -6/Zion Parts ------- > --- POWER (2) -------- (None) > --- PROPULSION (4) --- (None) > --- UTILITY (7) ------ Huge Storage Unit Experimental Optical Array > --- WEAPON (2) ------- (None) > --- INVENTORY (25) --- Light Fission Core Experimental Myomer Leg Nuclear Pulse Thruster Nuclear Pulse Thruster Nuclear Pulse Thruster Nuclear Pulse Thruster Matter Compressor (250) Advanced Terrain Scanner Nanoactuators Makeshift Hacking Suite Improved Hacking Suite Authchip [Device] Authchip [Device] Authchip [Processor] AS-neutralizer No. 17b Improved EM Pulse Cannon Gauss Rifle Coil Gun Mini Grenade Launcher Field Lobotomy Kit (5) Mace CR-A16's Pointy Stick Peak State ------------ > --- POWER ------------ Fission Core Fission Core > --- PROPULSION ------- Medium Treads Spiked Medium Treads Spiked Medium Treads Spiked Medium Treads > --- UTILITY ---------- Huge Storage Unit Experimental Optical Array Advanced Terrain Scanner Experimental Core Analyzer Nanoactuators Makeshift Hacking Suite Thief Drone Bay > --- WEAPON ----------- AWS/Gauss > --- INVENTORY -------- Light Fission Core Nuclear Pulse Thruster Nuclear Pulse Thruster Nuclear Pulse Thruster Nuclear Pulse Thruster Matter Compressor Improved Light Armor Plating Layered Light Armor Plating Improved Shield Generator Makeshift Hacking Suite Improved Hacking Suite Authchip [Device] Authchip [Device] Authchip [Processor] AS-neutralizer No. 17b Improved EM Pulse Cannon Gauss Rifle Coil Gun Mini Grenade Launcher Field Lobotomy Kit Mace Phasing Sabre Master Tearclaws CR-A16's Pointy Stick [Rating: 98] Favorites ----------- Power Fission Core Engine Improved Deuterium Engine Power Core Fission Core Reactor Cold Fusion Reactor Propulsion Spiked Medium Treads Treads Spiked Medium Treads Leg Advanced Myomer Leg Wheel Armored Huge Wheel Flight Unit Nuclear Pulse Thruster Utility Huge Storage Unit Device Thief Drone Bay Storage Huge Storage Unit Processor Experimental Core Analyzer Hackware Makeshift Hacking Suite Protection Improved Light Armor Plating Weapon Mace Energy Gun Medium Laser Energy Cannon Improved EM Pulse Cannon Ballistic Gun Assault Rifle Ballistic Cannon Light Cannon Launcher Mini Grenade Launcher Impact Weapon Mace Slashing Weapon Phasing Sabre Build | -11 -10 -10 -10 -9 -8 -7 -7 -7 -7 -6 -6 -6 -6 -6 ------- Run | Yrd Mat Min Exi Min Mat Fac Low Low Dat Pro Fac Low Low Zio Slots Evolved 8 | . . . . . 4 2 . . . . 2 . . . Power 1 | . . . . . . . . . . . 1 . . . Propulsion 2 | . . . . . 1 1 . . . . . . . . Utility 5 | . . . . . 3 1 . . . . 1 . . . Weapon . | . . . . . . . . . . . . . . . Parts Attached 243 | 6 8 4 18 2 38 29 11 8 1 9 46 11 11 41 Power 22 | 1 1 1 3 . 2 1 2 . . . 4 2 1 4 Engine 8 | 1 1 1 . . . 1 . . . . 2 2 . . Core 13 | . . . 2 . 2 . 2 . . . 2 . 1 4 Reactor 1 | . . . 1 . . . . . . . . . . . Propulsion 56 | 2 1 2 5 . 16 8 . 1 . . 6 1 3 11 Treads 41 | 2 . 1 2 . 13 6 . 1 . . 5 1 3 7 Leg 4 | . . . 2 . 2 . . . . . . . . . Wheel 6 | . 1 1 1 . . 2 . . . . 1 . . . Hover . | . . . . . . . . . . . . . . . Flight 5 | . . . . . 1 . . . . . . . . 4 Utility 77 | 1 4 1 8 2 7 9 4 . . 2 18 1 4 16 Device 46 | . 1 1 6 2 3 4 2 . . . 12 1 3 11 Storage 4 | 1 2 . . . . . . . . . . . . 1 Processor 6 | . . . . . 2 . . . . . 3 . . 1 Hackware 3 | . . . . . . 2 . . . . 1 . . . Protection 18 | . 1 . 2 . 2 3 2 . . 2 2 . 1 3 Artifact . | . . . . . . . . . . . . . . . Weapon 88 | 2 2 . 2 . 13 11 5 7 1 7 18 7 3 10 Energy Gun 2 | 1 . . . . . . . . . . 1 . . . Energy Cannon 5 | . . . . . . . . . . 1 3 . . 1 Ballistic Gun 54 | 1 . . 2 . 10 8 3 4 1 3 9 6 2 5 Ballistic Cannon 2 | . 2 . . . . . . . . . . . . . Launcher 7 | . . . . . . . . 2 . 3 . 1 1 . Special Weapon . | . . . . . . . . . . . . . . . Impact Weapon 15 | . . . . . 3 3 2 1 . . 5 . . 1 Slashing Weapon 3 | . . . . . . . . . . . . . . 3 Piercing Weapon . | . . . . . . . . . . . . . . . Special Melee Weapon . | . . . . . . . . . . . . . . . Unidentified Prototypes 13 | . . 1 7 . 2 . . . . . 3 . . . Parts Lost 33 | . 1 1 4 . 1 2 1 . . 1 8 2 2 10 Power 6 | . 1 1 . . . . 1 . . . 1 . . 2 Propulsion 4 | . . . 1 . . . . . . . 2 . . 1 Utility 15 | . . . 1 . 1 1 . . . 1 4 . 1 6 Weapon 8 | . . . 2 . . 1 . . . . 1 2 1 1 Highest Loss Streak 7 | . 1 1 2 . 1 1 1 . . 1 5 2 1 7 To Critical Strikes 2 | . . . 2 . . . . . . . . . . . Average Slot Usage (%) 93 | . 95 99 95 100 99 94 92 92 85 92 89 93 92 93 Engine 4 | . 14 13 5 . . 5 5 . . . 7 13 11 . Core 6 | . . . 3 . 4 1 1 7 7 7 3 . 1 12 Treads 19 | . 23 15 16 . 22 19 15 15 15 15 11 13 12 24 Wheel 4 | . 4 12 11 . . 4 7 7 7 7 6 6 6 . Device 12 | . 8 4 12 14 9 13 22 23 23 13 12 13 13 11 Storage 8 | . 14 14 14 14 9 7 7 7 7 7 6 6 6 5 Processor 11 | . . . . . 17 15 15 15 15 15 20 20 18 13 Hackware 2 | . . . . . . . . . . . 2 6 6 5 Protection 5 | . 1 9 1 . 8 8 . . . 8 2 . 1 7 Ballistic Gun 9 | . 8 . 14 28 16 12 8 6 1 5 9 11 12 5 Ballistic Cannon 3 | . 10 28 12 . . . . . . . . . . . Impact Weapon 1 | . . . . . 1 2 6 6 7 7 2 . . 1 Naked Turns . | . . . . . . . . . . . . . . . Heaviest Build 124 | 11 92 93 115 104 121 111 107 104 104 109 117 121 124 124 Greatest Support 112 | 40 40 40 60 60 60 80 28 28 28 28 28 28 28 112 Greatest Overweight (x) 26 | 2 9 9 11 1 2 3 3 3 3 3 4 4 4 26 Average Overweight (x) 3 | . 2 8 8 1 1 2 3 3 3 3 3 4 4 1 Largest Inventory Capacity 25 | 8 25 25 25 25 25 25 25 25 25 25 25 25 25 25 Average Capacity 24 | 7 14 25 25 25 25 25 25 25 25 25 25 25 25 24 Most Carried 25 | 3 14 14 25 25 25 25 25 25 25 25 25 25 25 25 Average Carried 21 | 1 9 13 12 25 24 24 24 24 25 24 24 24 24 24 Final Capacity 25 | 8 25 25 25 25 25 25 25 25 25 25 25 25 25 25 Final Carried 25 | 3 13 14 25 25 25 24 25 25 25 24 25 25 24 22 Class Distribution -------------------- 70% | Scavenger-Mutant 26% | Mutant 3% | Scavenger-Gladiator Dominant Class ---------------- Mutant | -10/Materials Mutant | -10/Mines Mutant | -10/Exiles Mutant | -9/Mines Scavenger-Mutant | -8/Materials Scavenger-Mutant | -7/Factory Scavenger-Mutant | -7/Lower Caves Scavenger-Mutant | -7/Lower Caves Scavenger-Mutant | -7/Data Miner Scavenger-Mutant | -6/Proximity Caves Scavenger-Mutant | -6/Factory Scavenger-Mutant | -6/Lower Caves Scavenger-Mutant | -6/Lower Caves Scavenger-Mutant | -6/Zion Resources | -11 -10 -10 -10 -9 -8 -7 -7 -7 -7 -6 -6 -6 -6 -6 ----------- Run | Yrd Mat Min Exi Min Mat Fac Low Low Dat Pro Fac Low Low Zio Matter Collected 6783 | 242 187 176 967 213 1157 769 314 142 . 164 1217 266 339 630 Remotely . | . . . . . . . . . . . . . . . Salvage Created 8427 | . 379 137 581 159 1513 934 160 184 . 211 1788 403 646 1332 Parts 486 | . 45 10 22 8 80 50 8 5 . 19 85 15 27 112 Haulers Intercepted 5 | . 1 . . . 4 . . . . . . . . . Recyclers Shooed 4 | . . . . . 3 . . . . . 1 . . . Parts Field Recycled . | . . . . . . . . . . . . . . . Retrieved Matter . | . . . . . . . . . . . . . . . Parts Self-Destructed 83 | . . . . . . . 30 5 . 13 . 5 29 1 Prevented . | . . . . . . . . . . . . . . . Kills | -11 -10 -10 -10 -9 -8 -7 -7 -7 -7 -6 -6 -6 -6 -6 ------- Run | Yrd Mat Min Exi Min Mat Fac Low Low Dat Pro Fac Low Low Zio Combat Hostiles Destroyed 125 | . 11 5 5 5 17 12 2 5 . 11 24 9 15 4 Guns 87 | . 6 . 2 5 17 12 2 1 . . 20 5 14 3 Cannons 17 | . 5 5 3 . . . . . . 1 3 . . . AOE 19 | . . . . . . . . 4 . 10 . 4 1 . Classes Destroyed 21 | . 5 2 3 . 2 2 . 1 . 3 1 1 . 1 Worker 8 | . . 1 . . 2 2 . . . . 3 . . . Builder 9 | . . 1 . . 4 1 . . . . 3 . . . Hauler 5 | . 1 . . . 4 . . . . . . . . . Recycler 7 | . . . . . 3 2 . . . . 2 . . . Minesweeper 1 | . . . . . . . . . . 1 . . . . Operator 4 | . 2 . . . 1 . . . . . 1 . . . Drone 2 | . . . . . . . . . . 2 . . . . Turret 1 | . . . 1 . . . . . . . . . . . Watcher 5 | . 2 . . . 2 1 . . . . . . . . Swarmer 36 | . 5 3 . 3 3 . . 1 . 8 3 4 6 . Grunt 43 | . 6 2 . 2 9 7 . 3 . . 12 . 2 . Brawler 4 | . . . . . . . . . . . 1 . 3 . Duelist 4 | . . . . . . . . 1 . . 1 . 2 . Sentry 13 | . . . . . 5 2 1 . . 1 2 . 2 . Hunter 6 | . . . . . . 2 . . . . 4 . . . Programmer 2 | . . . . . . 1 . . . . 1 . . . Zionite 59 | . . . 7 . . . . . . . . . . 52 Samaritan 1 | . . . . . . . . . . 1 . . . . Tinkerer 1 | . . . . . . . . . . . . . . 1 Assembled 4 | . . . 4 . . . . . . . . . . . Thug 3 | . . . . . . . 1 . . . . 1 . 1 Savage 2 | . . . . . . . . . . . . . . 2 Butcher 3 | . . . . . . . . . . . . 3 . . Mutant 2 | . . . . . . . . . . . . 1 . 1 Best Kill Streak 7 | . 3 5 5 3 6 4 1 4 . 4 6 5 6 7 Combat Bots Only 6 | . 3 3 3 3 5 4 1 4 . 4 6 5 6 1 Max Kills in Single Turn 3 | . 1 1 1 1 2 2 1 2 . 3 1 3 2 1 Gunslinging 1 | . . . . . 1 . . . . . . . 1 . Exploded 3 | . . . . . . . . 2 . 3 . 3 1 . Melee . | . . . . . . . . . . . . . . . Uniques/NPCs Destroyed 5 | . . . 4 . . . . . . . . . . 1 8R-AWN (-10/Exiles) EX-HEX (-10/Exiles) EX-DEC (-10/Exiles) EX-BIN (-10/Exiles) Imprinter (-6/Zion) Combat | -11 -10 -10 -10 -9 -8 -7 -7 -7 -7 -6 -6 -6 -6 -6 -------- Run | Yrd Mat Min Exi Min Mat Fac Low Low Dat Pro Fac Low Low Zio Hostile Shots Fired 778 | . 40 47 25 39 92 125 25 5 . 19 146 30 100 85 Missed 231 | . 12 15 2 12 24 38 10 2 . 5 47 9 32 23 Damage Taken 8672 | . 255 279 320 315 863 1041 354 44 . 211 1645 275 838 2232 Core 1444 | . 37 40 44 117 86 88 98 . . 23 160 23 83 645 Absorbed by Shields 582 | . . . . . . . . . . . 133 106 321 22 Core Remaining (%) 64 | 100 . . . 4 84 . . . . 70 . . . . Volleys Fired 521 | . 48 18 123 15 86 37 15 7 . 12 78 14 36 32 Largest 2 | . 2 2 2 2 2 2 2 2 . 1 2 2 2 2 Hottest 70 | . 70 70 70 50 60 60 50 60 . 69 69 60 60 69 Shots Fired 1000 | . 94 36 161 30 161 74 31 9 . 12 136 26 67 163 Gun 857 | . 76 . 139 30 161 74 31 4 . . 119 24 62 137 Cannon 122 | . 18 36 22 . . . . . . 3 17 . . 26 Launcher 21 | . . . . . . . . 5 . 9 . 2 5 . Special . | . . . . . . . . . . . . . . . Kinetic 896 | . 57 36 161 30 161 74 31 4 . . 119 24 62 137 Thermal 37 | . 37 . . . . . . . . . . . . . Explosive 21 | . . . . . . . . 5 . 9 . 2 5 . Electromagnetic 46 | . . . . . . . . . . 3 17 . . 26 Robot Hit Streak 48 | . 9 2 48 7 15 8 10 11 . 18 19 14 18 18 Robot Miss Streak 9 | . 4 9 4 3 3 6 1 . . . 4 1 3 2 Penetration Max 2 | . . . 1 . 2 1 . . . . 2 1 1 . Secondary Targets 16 | . 1 . . . 5 2 . . . . 2 2 4 . Max Gunslinging Chain 1 | . 1 . . . 1 1 . . . . 1 1 1 . Autonomous 128 | . . . . . . . . . . . . . . 128 Shots Hit Robots 702 | . 55 7 114 20 110 52 25 7 . 9 103 20 44 136 Core Hits 359 | . 26 7 34 8 50 26 6 9 . 16 63 15 36 63 Critical Kills 44 | . . . 8 2 17 12 . . . . 1 2 1 1 Critical Parts Destroyed 64 | . . . 12 2 27 9 3 1 . 1 6 3 . . Critical Strikes 125 | . 4 . 30 4 44 21 5 1 . 1 8 5 1 1 Burn 4 | . 4 . . . . . . . . . . . . . Destroy 118 | . . . 30 4 44 20 5 1 . . 7 5 1 1 Corrupt 1 | . . . . . . . . . . . 1 . . . Smash 2 | . . . . . . 1 . . . 1 . . . . Melee Attacks 113 | . . . . . 7 15 10 . . 11 22 . . 48 Impact 74 | . . . . . 7 15 10 . . 11 22 . . 9 Slashing 39 | . . . . . . . . . . . . . . 39 Piercing . | . . . . . . . . . . . . . . . Sneak Attacks 10 | . . . . . 2 2 . . . 2 3 . . 1 Combat Hostiles . | . . . . . . . . . . . . . . . Follow-up Attacks . | . . . . . . . . . . . . . . . Damage Inflicted 15802 | . 640 192 1750 314 2165 981 406 466 . 963 2661 739 1283 3242 Guns 11861 | . 496 . 1558 314 2010 886 406 50 . . 1969 463 837 2872 Cannons 1225 | . 144 192 192 . . . . . . 78 350 . . 269 Explosions 1997 | . . . . . . . . 416 . 769 90 276 446 . Melee 719 | . . . . . 155 95 . . . 116 252 . . 101 Ramming . | . . . . . . . . . . . . . . . Kinetic 12087 | . 338 192 1750 314 2010 886 406 50 . . 1969 463 837 2872 Thermal 392 | . 302 . . . . . . . . . 90 . . . Explosive 1907 | . . . . . . . . 416 . 769 . 276 446 . Electromagnetic 697 | . . . . . . . . . . 78 350 . . 269 Impact 654 | . . . . . 155 95 . . . 116 252 . . 36 Slashing 65 | . . . . . . . . . . . . . . 65 Piercing . | . . . . . . . . . . . . . . . Highest Corruption 6 | . . . . . . 1 1 1 1 1 5 . 4 6 Average Corruption 2 | . . . . . . 1 1 1 1 1 3 . 4 2 Corruption Purged 7 | . . . . . . . . . . . 7 . . . Corruption Blocked . | . . . . . . . . . . . . . . . Effects 66 | . . . . . . . 10 5 1 5 30 . 3 12 Message Errors 20 | . . . . . . . 2 4 . 1 8 . 1 4 Matter Fused 17 | . . . . . . . 5 . 1 2 4 . 1 4 Heat Flow Errors 8 | . . . . . . . 1 . . . 6 . . 1 Energy Discharges 5 | . . . . . . . 1 . . 2 . . 1 1 Parts Rejected 2 | . . . . . . . . . . . 2 . . . Parts Fused 1 | . . . . . . . . . . . 1 . . . Data Loss (minor) 5 | . . . . . . . . . . . 4 . . 1 Data Loss (major) 2 | . . . . . . . . 1 . . 1 . . . Misfires 4 | . . . . . . . 1 . . . 3 . . . Weapon Failures 2 | . . . . . . . . . . . 1 . . 1 Overload Shots . | . . . . . . . . . . . . . . . Overflow Damage 393 | . . 4 . . 41 65 . . . 122 155 . . 6 Projectiles 6 | . . 4 . . . . . . . . 2 . . . Explosions 43 | . . . . . . . . . . 9 34 . . . Melee 344 | . . . . . 41 65 . . . 113 119 . . 6 Knockbacks 8 | . . 3 2 . 1 . . . . . 2 . . . Impact 3 | . . . . . 1 . . . . . 2 . . . Kinetic 4 | . . 2 2 . . . . . . . . . . . Secondary 1 | . . 1 . . . . . . . . . . . . Self-Inflicted Damage 100 | . . . . . . . . . . 70 . . 30 . Shots 3 | . . . . . . . . . . 2 . . 1 . Rammed . | . . . . . . . . . . . . . . . Targets Rammed . | . . . . . . . . . . . . . . . Kicked . | . . . . . . . . . . . . . . . Crushed . | . . . . . . . . . . . . . . . Highest Temperature 335 | . 182 244 108 12 19 105 252 . . 66 335 3 52 264 Average Temperature 61 | . 45 128 32 7 8 34 130 . . 35 102 3 22 67 Received Heat Transfer 1901 | . 66 48 . 138 432 387 90 18 . 6 510 12 136 58 Siege Activations . | . . . . . . . . . . . . . . . Robots Corrupted 2 | . . . . . . . . . . . 1 . . 1 Combat Hostiles 2 | . . . . . . . . . . . 1 . . 1 Parts Fried 14 | . . . . . . 3 . . . 3 6 . . 2 Impact Corruptions 20 | . . . . . 2 2 . . . 10 5 . . 1 Robots Melted . | . . . . . . . . . . . . . . . Combat Hostiles . | . . . . . . . . . . . . . . . Parts Melted 3 | . 1 . . . . 1 . . . . 1 . . . Heat Transferred 1284 | . 1184 . . . . . . . . . 100 . . . Parts Sabotaged . | . . . . . . . . . . . . . . . Parts Stolen 1 | . . . . . . . . . . . . . 1 . Parts Stripped . | . . . . . . . . . . . . . . . Power Chain Reactions . | . . . . . . . . . . . . . . . Alert | -11 -10 -10 -10 -9 -8 -7 -7 -7 -7 -6 -6 -6 -6 -6 ------- Run | Yrd Mat Min Exi Min Mat Fac Low Low Dat Pro Fac Low Low Zio Peak Influence 602 | . 192 155 . 207 602 572 . . . . 517 . . . Initial 226 | . . 35 . . 80 226 . . . . 56 . . . Average 286 | . 100 126 . 115 431 344 . . . . 326 . . . Maximum Alert Level 2 | . . . . 1 2 2 . . . . 2 . . . Low Security (%) 37 | 100 100 100 . 84 13 4 . . . . 15 . . . Level 1 28 | . . . . 15 14 51 . . . . 53 . . . Level 2 33 | . . . . . 72 43 . . . . 30 . . . Level 3 . | . . . . . . . . . . . . . . . Level 4 . | . . . . . . . . . . . . . . . Level 5 . | . . . . . . . . . . . . . . . High Security . | . . . . . . . . . . . . . . . Max Security . | . . . . . . . . . . . . . . . Squads Dispatched 14 | . 5 . . . 2 3 . . . . 3 . 1 . Investigation 2 | . 2 . . . . . . . . . . . . . Extermination 3 | . . . . . . 2 . . . . 1 . . . Reinforcement 8 | . 3 . . . 2 1 . . . . 2 . . . Assault 1 | . . . . . . . . . . . . . 1 . Garrison . | . . . . . . . . . . . . . . . Intercept . | . . . . . . . . . . . . . . . Searches Triggered . | . . . . . . . . . . . . . . . Construction Impeded 1 | . . . . . 1 . . . . . . . . . Haulers Reinforced 1 | . . . . . . 1 . . . . . . . . Active Scanning Responses . | . . . . . . . . . . . . . . . Cargo Convoy Interrupts . | . . . . . . . . . . . . . . . Stealth | -11 -10 -10 -10 -9 -8 -7 -7 -7 -7 -6 -6 -6 -6 -6 --------- Run | Yrd Mat Min Exi Min Mat Fac Low Low Dat Pro Fac Low Low Zio Distress Signals 8 | . 2 . . . 2 1 . . . . 3 . . . Communications Jammed 17 | . . . . . . 15 . . . 2 . . . . Distress Signals 15 | . . . . . . 15 . . . . . . . . Times Spotted 264 | . 21 5 22 8 37 24 2 5 . 10 40 9 26 55 Peak Tracking Total 9 | . 3 3 9 3 6 4 4 4 . 4 5 5 9 7 Tactical Retreats 28 | . . . 7 1 4 5 1 1 . . 1 . 1 7 Traps | -11 -10 -10 -10 -9 -8 -7 -7 -7 -7 -6 -6 -6 -6 -6 ------- Run | Yrd Mat Min Exi Min Mat Fac Low Low Dat Pro Fac Low Low Zio Traps Triggered 4 | . . . . . . 1 . . . . 3 . . . Indirectly . | . . . . . . . . . . . . . . . Trap Hack Attempts . | . . . . . . . . . . . . . . . Triggered . | . . . . . . . . . . . . . . . Disarmed . | . . . . . . . . . . . . . . . Reprogrammed . | . . . . . . . . . . . . . . . Reused . | . . . . . . . . . . . . . . . Traps Extracted . | . . . . . . . . . . . . . . . Installed . | . . . . . . . . . . . . . . . Triggered 2 | . . . . . . . 2 . . . . . . . Objects Rigged 1 | . . . 1 . . . . . . . . . . . Exploded 1 | . . . 1 . . . . . . . . . . . Machines | -11 -10 -10 -10 -9 -8 -7 -7 -7 -7 -6 -6 -6 -6 -6 ---------- Run | Yrd Mat Min Exi Min Mat Fac Low Low Dat Pro Fac Low Low Zio Machines Disabled 26 | . . . 13 . 6 1 . . . . 5 . . 1 Max in Single Turn 3 | . . . 2 . 1 1 . . . . 3 . . 1 Garrison Access 3 | . . . . . . 1 . . . . 2 . . . Machines Repaired . | . . . . . . . . . . . . . . . Machines Dismantled . | . . . . . . . . . . . . . . . Machines Sabotaged . | . . . . . . . . . . . . . . . Overloaded Fab Kills . | . . . . . . . . . . . . . . . Hacking | -11 -10 -10 -10 -9 -8 -7 -7 -7 -7 -6 -6 -6 -6 -6 --------- Run | Yrd Mat Min Exi Min Mat Fac Low Low Dat Pro Fac Low Low Zio Machines Accessed 28 | . 5 1 2 . 2 4 1 1 3 . 9 . . . Terminals 11 | . 3 . . . 1 2 . . . . 5 . . . Fabricators 3 | . . . . . . 1 . . . . 2 . . . Repair Stations . | . . . . . . . . . . . . . . . Recycling Units 2 | . 2 . . . . . . . . . . . . . Scanalyzers 1 | . . . . . 1 . . . . . . . . . Garrison Access 3 | . . . . . . 1 . . . . 2 . . . Total Hacks 70 | . 8 1 2 . 5 11 1 1 24 . 17 . . . Successful 46 | . 4 1 2 . 3 3 1 1 24 . 7 . . . Failed 23 | . 3 . . . 2 8 . . . . 10 . . . Catastrophic 6 | . . . . . . 4 . . . . 2 . . . Database Lockouts 1 | . 1 . . . . . . . . . . . . . Manual 21 | . 8 . 1 . . 5 . . . . 7 . . . Terminals 21 | . 6 . . . 2 4 . . . . 9 . . . Fabricators 9 | . . . . . . 3 . . . . 6 . . . Repair Stations . | . . . . . . . . . . . . . . . Recycling Units 2 | . 2 . . . . . . . . . . . . . Scanalyzers 3 | . . . . . 3 . . . . . . . . . Garrison Access 6 | . . . . . . 4 . . . . 2 . . . Terminal Hacks 36 | . 2 1 2 . 1 1 1 1 24 . 3 . . . Record 7 | . . . 1 . . . . . 6 . . . . . Part Schematic 10 | . . . . . . . . . 10 . . . . . Robot Schematic 5 | . . . . . . . . . 5 . . . . . Robot Analysis 2 | . 1 . . . . . . . . . 1 . . . Prototype ID Bank 3 | . . . . . . . . . 3 . . . . . Open Door 3 | . . 1 . . . . 1 1 . . . . . . Branch Access Points 2 | . . . . . . 1 . . . . 1 . . . Locate Traps 2 | . 1 . . . . . . . . . 1 . . . Hauler Manifests 1 | . . . . . 1 . . . . . . . . . Derelict Proto ID Bank 1 | . . . 1 . . . . . . . . . . . Fabricator Hacks 1 | . . . . . . . . . . . 1 . . . Load Schematic 1 | . . . . . . . . . . . 1 . . . Repair Station Hacks . | . . . . . . . . . . . . . . . Recycling Unit Hacks . | . . . . . . . . . . . . . . . Scanalyzer 2 | . . . . . 2 . . . . . . . . . Insert Component 1 | . . . . . 1 . . . . . . . . . Analyze 1 | . . . . . 1 . . . . . . . . . Garrison Access Hacks 3 | . . . . . . 1 . . . . 2 . . . Seal Access 3 | . . . . . . 1 . . . . 2 . . . Unauthorized Hacks 4 | . 2 . . . . 1 . . . . 1 . . . Terminals 1 | . . . . . . . . . . . 1 . . . Botnet 1 | . . . . . . . . . . . 1 . . . Fabricators 1 | . . . . . . 1 . . . . . . . . Liberate 1 | . . . . . . 1 . . . . . . . . Repair Stations . | . . . . . . . . . . . . . . . Recycling Units 2 | . 2 . . . . . . . . . . . . . Tunnel 2 | . 2 . . . . . . . . . . . . . Scanalyzers . | . . . . . . . . . . . . . . . Garrison Access . | . . . . . . . . . . . . . . . Data Cores Recovered 1 | . . . . . . . . . . . 1 . . . Used 1 | . . . . . . . . . . . 1 . . . Hacking Detections 15 | . 2 . . . 2 4 . . . . 7 . . . Full Trace Events . | . . . . . . . . . . . . . . . Feedback Events . | . . . . . . . . . . . . . . . Feedback Blocked . | . . . . . . . . . . . . . . . Robot Schematics Acquired 5 | . . . . . . . . . 5 . . . . . Robots Built . | . . . . . . . . . . . . . . . Authchips . | . . . . . . . . . . . . . . . Time . | . . . . . . . . . . . . . . . Total Robot Build Rating . | . . . . . . . . . . . . . . . Part Schematics Acquired 11 | . . . . . 1 . . . 10 . . . . . Parts Built . | . . . . . . . . . . . . . . . Authchips . | . . . . . . . . . . . . . . . Time . | . . . . . . . . . . . . . . . Total Part Build Rating . | . . . . . . . . . . . . . . . Parts Repaired . | . . . . . . . . . . . . . . . Time . | . . . . . . . . . . . . . . . Parts Recycled . | . . . . . . . . . . . . . . . Recycled Matter . | . . . . . . . . . . . . . . . Retrieved Matter . | . . . . . . . . . . . . . . . Retrieved Components . | . . . . . . . . . . . . . . . Parts Scanalyzed 1 | . . . . . 1 . . . . . . . . . Part Schematics Acquired 1 | . . . . . 1 . . . . . . . . . Parts Damaged . | . . . . . . . . . . . . . . . Bothacking | -11 -10 -10 -10 -9 -8 -7 -7 -7 -7 -6 -6 -6 -6 -6 ------------ Run | Yrd Mat Min Exi Min Mat Fac Low Low Dat Pro Fac Low Low Zio Used RIF Installer . | . . . . . . . . . . . . . . . Robots Hacked . | . . . . . . . . . . . . . . . Non-combat . | . . . . . . . . . . . . . . . Combat . | . . . . . . . . . . . . . . . Robot Hacks Applied . | . . . . . . . . . . . . . . . Relay Couplers Released . | . . . . . . . . . . . . . . . Fabnet Peak Effective % . | . . . . . . . . . . . . . . . Robots Rewired . | . . . . . . . . . . . . . . . Allies Hacked . | . . . . . . . . . . . . . . . Hacks Repelled . | . . . . . . . . . . . . . . . Allies | -11 -10 -10 -10 -9 -8 -7 -7 -7 -7 -6 -6 -6 -6 -6 -------- Run | Yrd Mat Min Exi Min Mat Fac Low Low Dat Pro Fac Low Low Zio Total Allies 3 | . . . . . . 3 . . . . . . . . Largest Group 3 | . . . . . . 3 . . . . . . . . Highest-Rated Group 48 | . . . . . . 48 . . . . . . . . Highest-Rated Ally 16 | . . . . . . 16 . . . . . . . . Total Orders 55 | . . . 5 3 5 . 3 6 . 1 . 8 4 20 ROAM 6 | . . . . . . . . . . . . . . 6 EXPLORE 14 | . . . 1 1 . . 1 2 . . . 4 . 5 RETURN 35 | . . . 4 2 5 . 2 4 . 1 . 4 4 9 Ally Attacks 189 | . . . 71 12 22 27 . 1 . . . 1 45 10 Total Damage 1295 | . . . 398 37 252 402 . . . . . 9 165 32 Kills 14 | . . . 4 2 4 3 . . . . . . 1 . Allies Corrupted . | . . . . . . . . . . . . . . . Allies Melted . | . . . . . . . . . . . . . . . Turrets Deployed 1 | . . . . . 1 . . . . . . . . . Intel | -11 -10 -10 -10 -9 -8 -7 -7 -7 -7 -6 -6 -6 -6 -6 ------- Run | Yrd Mat Min Exi Min Mat Fac Low Low Dat Pro Fac Low Low Zio Robot Analysis Total 2 | . 1 . . . . . . . . . 1 . . . Derelict Logs Recovered 10 | . . 3 . . . . 2 1 . 1 . . 1 2 Drone Launches 81 | . . . 19 4 6 . 7 5 3 . . 8 13 16 Drone Recoveries 78 | . . . 19 4 6 . 4 8 . 3 . 5 16 13 Exploration | -11 -10 -10 -10 -9 -8 -7 -7 -7 -7 -6 -6 -6 -6 -6 ------------- Run | Yrd Mat Min Exi Min Mat Fac Low Low Dat Pro Fac Low Low Zio Turns Passed 18926 | 66 947 454 2921 233 1249 1118 850 599 116 696 1540 447 559 7131 Spaces Moved 6573 | 37 427 181 1031 90 371 487 496 340 77 416 798 236 268 1318 Core 9 | 7 . . . . . . . . . . . . . 2 Treads 1655 | 30 295 6 123 . 277 123 . . . . . . . 801 Legs 193 | . . . 9 90 94 . . . . . . . . . Wheels 4687 | . 132 175 899 . . 364 496 340 77 416 798 236 268 486 Hover . | . . . . . . . . . . . . . . . Flight 29 | . . . . . . . . . . . . . . 29 Fastest Speed 31 | 50 160 200 190 190 190 145 145 145 145 145 145 160 160 31 Average Speed 181 | 148 174 218 235 190 227 168 145 145 145 145 148 160 160 192 Slowest Speed 1350 | 160 320 320 560 190 320 240 145 145 145 145 160 160 160 1350 Overloaded Moves . | . . . . . . . . . . . . . . . Propulsion Burnouts . | . . . . . . . . . . . . . . . Robots Hopped . | . . . . . . . . . . . . . . . Cave-ins Triggered . | . . . . . . . . . . . . . . . Exploration Rate (%) 57 | 4 66 48 92 34 40 19 92 90 71 64 37 73 50 86 Regions Visited 14 Branch Regions 10 Pre-discovered Areas 7 | . 2 . 1 1 . . 1 . 1 . . . . 1 Known Exits Taken 3 | . . . . . 1 1 . . . . 1 . . . Unknown Exits Taken 11 | 1 1 1 1 1 . . 1 1 1 1 . 1 1 . Scrap Searched 16 | . . 1 . . . . 2 4 . 1 . 3 1 4 Spaces Dug 62 | . . . . . 4 9 6 . . 30 11 . . 2 Terrain Destroyed 295 | . . . 29 7 26 17 7 20 . 67 58 12 39 13 Melee 38 | . . . . . 4 8 6 . . 7 11 . . 2 Projectile 84 | . . . 23 6 19 7 . 3 . . 7 . 8 11 AOE 160 | . . . . . . . . 17 . 60 40 12 31 . Terrain Rammed . | . . . . . . . . . . . . . . . Walls Destroyed . | . . . . . . . . . . . . . . . Machines Disabled . | . . . . . . . . . . . . . . . Actions | -11 -10 -10 -10 -9 -8 -7 -7 -7 -7 -6 -6 -6 -6 -6 --------- Run | Yrd Mat Min Exi Min Mat Fac Low Low Dat Pro Fac Low Low Zio Total 12615 | 45 546 203 1377 121 602 676 574 435 81 474 1017 278 337 5849 Wait 4897 | . 39 . 143 15 71 91 41 76 3 27 40 13 7 4331 Move 6559 | 36 426 180 1030 89 370 486 495 339 76 415 797 235 267 1318 Hop . | . . . . . . . . . . . . . . . Pick Up 128 | 3 16 . 25 . 11 7 2 2 . . 18 2 7 35 Fast Attach 45 | 6 3 2 6 . 2 2 . . 1 . 8 1 1 13 Attach 50 | . 1 . 6 . 7 5 1 . . 1 13 2 3 11 Detach 20 | . . 1 8 . 2 . . . . . 3 . . 6 Swap 148 | . 4 2 6 2 29 22 10 8 . 8 25 8 7 17 Drop 141 | . 9 . 29 . 17 11 . 3 1 . 13 3 9 46 Fire 521 | . 48 18 123 15 86 37 15 7 . 12 78 14 36 32 Melee 105 | . . . . . 7 15 10 . . 11 22 . . 40 Ram . | . . . . . . . . . . . . . . . Kick . | . . . . . . . . . . . . . . . Crush . | . . . . . . . . . . . . . . . Escape Stasis . | . . . . . . . . . . . . . . . Rewire . | . . . . . . . . . . . . . . . Trap 1 | . . . 1 . . . . . . . . . . . Miscellaneous . | . . . . . . . . . . . . . . . Route ------- -11/Scrapyard -10/Materials (discovered 4 exits: [*Mat x2] / *Min x2) -10/Mines -10/Exiles (discovered 2 exits: [*Min x2]) -9/Mines -8/Materials (discovered 3 exits: *Fac x3) -7/Factory (discovered 3 exits: *Fac / *Low x2) -7/Lower Caves -7/Lower Caves (discovered 2 exits: *Fac / *Dat) -7/Data Miner -6/Proximity Caves -6/Factory (discovered 6 exits: *Fac x2 / *Low x2 / Ext x2) -6/Lower Caves -6/Lower Caves (discovered 2 exits: *Fac / *Zio) -6/Zion (discovered 2 exits: [*Dee] / [*Pro]) History --------- Turn | Location | Event 6 | -11/Scrapyard | Discovered new exit (range 16) 67 | -11/Scrapyard | Entered Materials 315 | -10/Materials | Build established: Mutant 523 | -10/Materials | Central database locked down 550 | -10/Materials | Discovered new exit (range 7) 615 | -10/Materials | Discovered new exit (range 16) 684 | -10/Materials | Discovered new exit (range 15) 761 | -10/Materials | Discovered new exit (range 16) 1014 | -10/Materials | Entered Mines 1076 | -10/Mines | Learned Materials emergency access door positions 1171 | -10/Mines | Learned location of 1 exit from Materials 1327 | -10/Mines | Found the Drone Emporium 1338 | -10/Mines | Found Prototype Device 1338 | -10/Mines | Identified Thief Drone Bay 1382 | -10/Mines | Learned Materials terminal intel 1459 | -10/Mines | Deemed a non-threat by the Exiles lab entrance 1459 | -10/Mines | Discovered new exit (range 5) 1468 | -10/Mines | Entered Exiles 1496 | -10/Exiles | Discovered new exit (range 15) 1522 | -10/Exiles | Met 8R-AWN 1557 | -10/Exiles | Met EX-HEX 1621 | -10/Exiles | Met EX-BIN 1645 | -10/Exiles | Met EX-DEC 1658 | -10/Exiles | Learned location of Zion (-6) 1849 | -10/Exiles | Aligned with FarCom system 1851 | -10/Exiles | Given EX-Vault access code 1903 | -10/Exiles | Opened EX-Vault 1916 | -10/Exiles | Found PSU Rigger 1919 | -10/Exiles | Found AWS/Gauss 1922 | -10/Exiles | Found Field Lobotomy Kit 1966 | -10/Exiles | Warned to stay clear of 0b10 Research branches 2104 | -10/Exiles | Discovered new exit (range 10) 2695 | -10/Exiles | Attacked by the Exiles 2868 | -10/Exiles | Found 8R-AWN's Boregun 3336 | -10/Exiles | Destroyed 8R-AWN 3344 | -10/Exiles | Found Prototype Processor 3358 | -10/Exiles | Found AS-neutralizer No. 17b 3971 | -10/Exiles | Allies destroyed EX-HEX 3979 | -10/Exiles | Allies destroyed EX-DEC 3984 | -10/Exiles | Allies destroyed EX-BIN 4087 | -10/Exiles | Found Prototype Processor 4096 | -10/Exiles | Found Deploy-a-Sentry 4389 | -10/Exiles | Stole four prototypes: PSU Rigger, AWS/Gauss, Field Lobotomy Kit, Deploy-a-Sentry 4389 | -10/Exiles | Entered Mines 4392 | -9/Mines | Core integrity fell below 50% 4412 | -9/Mines | Core integrity fell below 20% 4519 | -9/Mines | Discovered new exit (range 51) 4600 | -9/Mines | Learned location of Storage (-9) 4622 | -9/Mines | Entered Materials 4622 | -8/Materials | Evolved 4 slots: Propulsion x1, Utility x3 4623 | -8/Materials | Identified exit to Factory 4625 | -8/Materials | Loaded intel: 12 terminal locations 4629 | -8/Materials | Identified Exp. Targeting Computer 4858 | -8/Materials | Found 8R-AWN's Boregun 5141 | -8/Materials | Discovered exit to Factory (range 11) 5168 | -8/Materials | DAS Turret deployed 5256 | -8/Materials | Build established: Scavenger-Mutant 5417 | -8/Materials | Discovered exit to Factory (range 20) 5871 | -8/Materials | Entered Factory 5871 | -7/Factory | Evolved 2 slots: Propulsion x1, Utility x1 5920 | -7/Factory | Identified exit to Lower Caves 6531 | -7/Factory | Discovered new exit (range 12) 6989 | -7/Factory | Entered Lower Caves 7329 | -7/Lower Caves | Learned Factory non-interactive machine intel 7347 | -7/Lower Caves | Ambushed by wild Derelicts 7602 | -7/Lower Caves | Attracted the attention of an 0b10 outpost 7814 | -7/Lower Caves | Discovered new exit (range 8) 7815 | -7/Lower Caves | Encountered a Warlord checkpoint 7839 | -7/Lower Caves | Entered another Lower Caves area 7839 | -7/Lower Caves | Accompanied by 3 allies 7948 | -7/Lower Caves | Discovered new exit (range 17) 8039 | -7/Lower Caves | Learned Factory stockpile data 8415 | -7/Lower Caves | Discovered new exit (range 16) 8438 | -7/Lower Caves | Entered Data Miner 8438 | -7/Data Miner | Discovered new exit (range 6) 8461 | -7/Data Miner | Met Data Miner 8491 | -7/Data Miner | Learned location of Section 7 (-2) 8491 | -7/Data Miner | Acquired the access code to Warlord's prototype stash 8513 | -7/Data Miner | Received God Mode back door access code from Data Miner 8554 | -7/Data Miner | Entered Proximity Caves 8554 | -6/Proximity Caves | Accompanied by 3 allies 8575 | -6/Proximity Caves | Attracted the attention of an 0b10 checkpoint 8646 | -6/Proximity Caves | Spotted B-75 Beast 9021 | -6/Proximity Caves | Learned 4 Factory zone layouts 9217 | -6/Proximity Caves | Discovered new exit (range 11) 9250 | -6/Proximity Caves | Entered Factory 9250 | -6/Factory | Evolved 2 slots: Power x1, Utility x1 9250 | -6/Factory | Identified Exp. Core Analyzer 9253 | -6/Factory | Loaded intel: 183 non-interactive machine locations 9355 | -6/Factory | Discovered new exit (range 13) 9468 | -6/Factory | Identified exit to Factory 9822 | -6/Factory | Lost 5 parts (2n2u1w) 9835 | -6/Factory | Discovered exit to Factory (range 16) 10139 | -6/Factory | Identified exit to Lower Caves 10139 | -6/Factory | Identified exit to Extension 10790 | -6/Factory | Entered Lower Caves 10917 | -6/Lower Caves | Attacked by a faux Warlord 11218 | -6/Lower Caves | Discovered new exit (range 6) 11237 | -6/Lower Caves | Entered another Lower Caves area 11237 | -6/Lower Caves | Accompanied by 3 allies 11237 | -6/Lower Caves | Discovered exit to Factory (range 15) 11242 | -6/Lower Caves | Attracted the attention of an 0b10 checkpoint 11463 | -6/Lower Caves | Learned Factory security intel 11594 | -6/Lower Caves | Spotted DD-MFB(f) 11595 | -6/Lower Caves | Encountered a Master Thief 11595 | -6/Lower Caves | Spotted JZ-P57(f) 11596 | -6/Lower Caves | Encountered a Master Thief 11610 | -6/Lower Caves | PSU Rigger stolen by Master Thief 11626 | -6/Lower Caves | Attracted the attention of an 0b10 outpost 11654 | -6/Lower Caves | Allies destroyed JZ-P57(f) 11736 | -6/Lower Caves | Spotted B-75 Beast 11790 | -6/Lower Caves | Discovered new exit (range 5) 11796 | -6/Lower Caves | Entered Zion 11846 | -6/Zion | System corruption cleaned by Quarantine Array 11870 | -6/Zion | Discovered new exit (range 21) 11901 | -6/Zion | Found Prototype Processor 11913 | -6/Zion | Identified Exp. Signal Interpreter 12009 | -6/Zion | Found Prototype Processor 12014 | -6/Zion | Identified Exp. Armor Integrity Analyzer 12116 | -6/Zion | Learned Factory machine intel 12438 | -6/Zion | Learned 4 Factory zone layouts 12813 | -6/Zion | Found CR-A16's Pointy Stick 13665 | -6/Zion | Build established: Scavenger-Gladiator 13816 | -6/Zion | Discovered new exit (range 12) 13936 | -6/Zion | Attacked by Zionites 13965 | -6/Zion | Saw the warning signs outside the Deep Caves entrance 14231 | -6/Zion | Build established: Scavenger-Mutant 18615 | -6/Zion | Destroyed Imprinter 18877 | -6/Zion | 1C-UTU came to Zion's defense 18919 | -6/Zion | Core integrity fell below 50% 18925 | -6/Zion | Core integrity fell below 20% 18927 | -6/Zion | Destroyed by 1C-UTU with 1C-UTU's Sword "Choppy" Last Messages --------------- 18908_ Acquired Thief Drone Bay. 18909_ 1C-UTU follow-up attacks with Prototype Slashing Weapon. 18909_ Spk. Medium Treads severed. 18910_ Fission Core destroyed. 18910_ 1C-UTU follow-up attacks with Prototype Slashing Weapon. 18910_ Spk. Medium Treads severed. 18910_ 1C-UTU Prototype Leg ripped off. 18912_ 1C-UTU follow-up attacks with Prototype Slashing Weapon. 18912_ Thief Drone Bay destroyed. 18913_ Master Tearclaws destroyed. 18914_ Imp. Light Armor Plating destroyed. 18915_ 1C-UTU follow-up attacks with Prototype Slashing Weapon. 18915_ Spk. Medium Treads severed. 18916_ Fission Core destroyed. 18918_ Imp. Heat Sink destroyed. 18918_ 1C-UTU follow-up attacks with Prototype Slashing Weapon. 18918_ Phasing Sabre severed. 18919_ 1C-UTU follow-up attacks with Prototype Slashing Weapon. 18926_ Exp. Core Analyzer severed. U5-GQE(z) bursts out of the Twisted Machinery. Map ----- +----------------------------------------------------+ | """ %! """#?????????????????? | | / ""###?????????????????? | | "" ""#???????????????????? | | """" "" """#??????????????????? | | [""#""" " """"""" "##??????????????????? | | %= #""""" ""#"#""" ""#???????????????????? | | """"""" "" ""###"""" ""#???????????????????? | | " """###""" "##???????????????????? | | / % ###""" ""#???????????????????? | | % =%= [% "###"" ""#???????????????????? | | = " #"""" [ ""##?##" """???????????????????? | | % """" ""##??" ""##????????????????### | | " """"" "#"###" """#????????????????# | | " "#""" % "#""" ""#????????????????# | | " #""" = * """ "##?????????????????# | | " ""##"" % ""##????????????????## | | """####" =%* """#????????????????## | | """"###" %[! """ " ""##????????????????# | | "#####"" == """#""" "#?????????????????# | | ####?##"" = ! """"" """#?????????????????## | | |]]### "" / "#"???????????????????# | | [ " "#??#####?????????????? | | [ "" """""""#??#% "############### | | | " " """"""##??# = """"" """## # | | [[### " " """ ""####! """ "" # | | ####?# " z@ #= " | | ?????# "" ==l %[%# | | ?????## [ = %%= % | | ?????#"" "!|" """# %% ## | | ?????###" * "%""" "###[% * " "" """# | | ???????##" % =""" ""## * "" """""# | | ????????#"" / "#"# ############# | | ????????##" " "#######???????????# | | ??????###"" "" ""#?????????????????### | | ??????#"""" ""##??????????????????? | | ??????#"#"" ""#??????????????????? | | ?????#"#""" "" ""#??????????????????? | | ?????###" """"""" "##??????????????????? | | #?##??#""" """""""" """#??????????????????? | | ###"#####"" """"""" """#??????????????????? | | ""##"""""#" "" "" ""#??????????????????? | | """"""""#" " ""#??????????????????? | | """ """" "" ""#??????????????????? | | """ """ """???????????????????? | | #"""" """"" ""#???????????????????? | | #""""""#"#" "##???????????????????? | | """""""###" ""#???????????????????? | | "" """""""###""" ""#???????????????????? | | "" """""""" "#????????????????????? | | """ "#????????????????????? | +----------------------------------------------------+ Best States ------------- Heat Dissipation 64 Energy Generation 31 Energy Capacity 520 Matter Stores 300 Matter Capacity 300 Sight Range 23 Robot Scan Range 19 Terrain Scan Range 20 Terrain Scan Density 10 Jamming Range 16 Armor Coverage 375 Weapon Cycling 25 Melee Speed Boost 30 Evasion (%) 63 Targeting Accuracy 12 Core Analysis 8 Recoil Reduction 4 Offensive Hacking 20 Authchip Count 3 Item Schematics ----------------- Adv. Weapon Cycler | -8/Materials | Scanalyzed Combat Drone Bay | -7/Data Miner | Free Lgt. Regenerative Plating | -7/Data Miner | Free Cld. Cesium-ion Thruster | -7/Data Miner | Free Thermal Defense Suite | -7/Data Miner | Free Imp. Lightning Gun | -7/Data Miner | Free Linear Gravjet | -7/Data Miner | Free Adv. System Shield | -7/Data Miner | Free Lrn. Proton Cannon | -7/Data Miner | Free Imp. Arc Projector | -7/Data Miner | Free Hvy. Gauss Cannon | -7/Data Miner | Free Robot Schematics ------------------ B-48 Gladiator | -7/Data Miner | Free S-27 Virus | -7/Data Miner | Free O-24 Administrator | -7/Data Miner | Free W-25 Informer | -7/Data Miner | Free B-60 Warrior | -7/Data Miner | Free Fabricated ------------ Nothing Alien Tech Used ----------------- None Achievements -------------- None Challenges ------------ None Game ------ Seed ArmorVisualDissipator Manual? 0 Play Time 02:07:49 Cumulative 565.1 hours Start 2024.05.05 @ 14:28:31 End 2024.05.06 @ 20:19:52 Sessions 12 Manual Loads 0 Difficulty Rogue Special Mode None Game No. 603 Rogue 516 Adventurer 87 Explorer 0 Win Type - Total 32 Types 8/0/18/1/1/1/3/0/0 Lore% 91 Gallery% 94 Achievement% 79 Wizard Run 0 Options --------- Layout 0 ASCII 0 Keyboard 1 Movement Numpad Keybinds 0 Fullscreen 2 Font 16/SmallcapsGlow Map View 88x55 Zoom Use 0% Tactical HUD 1 Map Filters NONE Filters NONE Steam 1 RUN: 2a5d6e71-059d-4ef9-b350-7b2c1eb32a38